[Event "Early-Titled-Tuesday-Blitz-May-28-2024"]
[Site "Chess.com"]
[Date "2024.05.28"]
[Round "1"]
[White "LeoLV10"]
[Black "olawsson"]
[Result "1-0"]
[WhiteElo "2574"]
[BlackElo "2135"]
[TimeControl "180+1"]
[EndTime "8:05:26 PDT"]
[Termination "LeoLV10 won on time"]

1. e4 {[%clk 0:03:00.9]} 1... c5 {[%clk 0:02:58.8]} 2. Nf3 {[%clk 0:02:57.8]}
2... a6 {[%clk 0:02:58.8]} 3. d4 {[%clk 0:02:56.2]} 3... cxd4 {[%clk 0:02:58.4]}
4. Nxd4 {[%clk 0:02:57.1]} 4... Nf6 {[%clk 0:02:58.4]} 5. Bd3 {[%clk 0:02:53.5]}
5... e5 {[%clk 0:02:58.1]} 6. Nb3 {[%clk 0:02:45.2]} 6... d5 {[%clk 0:02:53.3]}
7. exd5 {[%clk 0:02:45]} 7... Nxd5 {[%clk 0:02:49.9]} 8. O-O {[%clk 0:02:43]}
8... Be7 {[%clk 0:02:47.8]} 9. Re1 {[%clk 0:02:38.2]} 9... Nc6 {[%clk
0:02:47.3]} 10. a3 {[%clk 0:02:31.8]} 10... O-O {[%clk 0:02:10.2]} 11. c4 {[%clk
0:02:30.4]} 11... Nc7 {[%clk 0:01:51.3]} 12. Nc3 {[%clk 0:02:26.6]} 12... f5
{[%clk 0:01:50.2]} 13. Qc2 {[%clk 0:02:21.2]} 13... e4 {[%clk 0:01:31.9]} 14.
Bf1 {[%clk 0:02:19.7]} 14... Be6 {[%clk 0:01:21.3]} 15. Rd1 {[%clk 0:02:18.7]}
15... Qe8 {[%clk 0:01:21.3]} 16. Bf4 {[%clk 0:02:18.8]} 16... Rc8 {[%clk
0:01:15.2]} 17. Na4 {[%clk 0:02:14.9]} 17... g5 {[%clk 0:00:58.8]} 18. Bd6
{[%clk 0:02:14.7]} 18... Bxd6 {[%clk 0:00:28.5]} 19. Rxd6 {[%clk 0:02:14]} 19...
Qe7 {[%clk 0:00:29.4]} 20. Rad1 {[%clk 0:02:12.2]} 20... Rcd8 {[%clk 0:00:29.5]}
21. c5 {[%clk 0:01:53.2]} 21... Ne5 {[%clk 0:00:17.5]} 22. Nb6 {[%clk
0:01:45.9]} 22... Qf7 {[%clk 0:00:07.4]} 23. Nd4 {[%clk 0:01:41.8]} 23... Bc8
{[%clk 0:00:00.6]} 24. Bc4 {[%clk 0:01:33.6]} 1-0

[Event "Early-Titled-Tuesday-Blitz-May-28-2024"]
[Site "Chess.com"]
[Date "2024.05.28"]
[Round "1"]
[White "abelmat"]
[Black "KononenkoD"]
[Result "0-1"]
[WhiteElo "2045"]
[BlackElo "2567"]
[TimeControl "180+1"]
[EndTime "8:05:29 PDT"]
[Termination "KononenkoD won by resignation"]

1. c4 {[%clk 0:02:56.1]} 1... c5 {[%clk 0:02:59.4]} 2. Nc3 {[%clk 0:02:55.8]}
2... Nc6 {[%clk 0:02:59.6]} 3. Nf3 {[%clk 0:02:56.1]} 3... g6 {[%clk 0:02:58.7]}
4. g3 {[%clk 0:02:56.3]} 4... Bg7 {[%clk 0:02:58.3]} 5. Bg2 {[%clk 0:02:56.6]}
5... d6 {[%clk 0:02:58.7]} 6. O-O {[%clk 0:02:56.7]} 6... Bf5 {[%clk 0:02:59]}
7. d4 {[%clk 0:02:56.4]} 7... cxd4 {[%clk 0:02:49.8]} 8. Nb5 {[%clk 0:02:56]}
8... e5 {[%clk 0:02:49]} 9. Nh4 {[%clk 0:02:50.6]} 9... Be6 {[%clk 0:02:40.2]}
10. b3 {[%clk 0:02:40.3]} 10... a6 {[%clk 0:02:37.9]} 11. Na3 {[%clk 0:02:24.9]}
11... Nge7 {[%clk 0:02:36.8]} 12. e3 {[%clk 0:02:24.5]} 12... O-O {[%clk
0:02:32.9]} 13. Bb2 {[%clk 0:02:21.9]} 13... dxe3 {[%clk 0:02:27.2]} 14. fxe3
{[%clk 0:02:21.3]} 14... d5 {[%clk 0:02:27.3]} 15. Qe2 {[%clk 0:02:13.5]} 15...
d4 {[%clk 0:02:09.9]} 16. Rad1 {[%clk 0:02:11.9]} 16... Qa5 {[%clk 0:02:06.2]}
17. Nf3 {[%clk 0:01:51.2]} 17... Rad8 {[%clk 0:01:58.9]} 18. Ng5 {[%clk
0:01:50.9]} 18... Bf5 {[%clk 0:01:57]} 19. e4 {[%clk 0:01:46.7]} 19... Bc8
{[%clk 0:01:52.6]} 20. h4 {[%clk 0:01:42.8]} 20... h6 {[%clk 0:01:46.2]} 21. Nh3
{[%clk 0:01:34.2]} 21... f5 {[%clk 0:01:35.7]} 22. Nf2 {[%clk 0:01:30.7]} 22...
f4 {[%clk 0:01:30]} 23. Nd3 {[%clk 0:01:28]} 23... fxg3 {[%clk 0:01:26.8]} 24.
Rxf8+ {[%clk 0:01:25.8]} 24... Rxf8 {[%clk 0:01:25.7]} 25. c5 {[%clk 0:01:26.2]}
25... h5 {[%clk 0:01:22]} 26. Bc1 {[%clk 0:01:21.7]} 26... Bg4 {[%clk
0:01:20.3]} 27. Nc4 {[%clk 0:01:19.4]} 27... Bxe2 {[%clk 0:01:17.9]} 28. Nxa5
{[%clk 0:01:18.8]} 28... Bxd1 {[%clk 0:01:17.5]} 29. Nxc6 {[%clk 0:01:18.3]}
29... Nxc6 {[%clk 0:01:16.7]} 30. Bg5 {[%clk 0:01:16]} 30... Kh7 {[%clk
0:01:13.2]} 31. Bh3 {[%clk 0:01:16.9]} 31... Bf3 {[%clk 0:01:09.8]} 32. Bg2
{[%clk 0:01:11.3]} 32... Bh6 {[%clk 0:01:08.9]} 0-1

[Event "Early-Titled-Tuesday-Blitz-May-28-2024"]
[Site "Chess.com"]
[Date "2024.05.28"]
[Round "1"]
[White "Yan_Dyomin2010"]
[Black "KnightmareJoker"]
[Result "1-0"]
[WhiteElo "2613"]
[BlackElo "2298"]
[TimeControl "180+1"]
[EndTime "8:05:32 PDT"]
[Termination "Yan_Dyomin2010 won by resignation"]

1. e4 {[%clk 0:02:58.2]} 1... e5 {[%clk 0:02:57.8]} 2. d4 {[%clk 0:02:57.5]}
2... exd4 {[%clk 0:02:57.6]} 3. Qxd4 {[%clk 0:02:58.4]} 3... Nc6 {[%clk
0:02:56.4]} 4. Qd3 {[%clk 0:02:59]} 4... Nf6 {[%clk 0:02:55.5]} 5. Nc3 {[%clk
0:02:59.6]} 5... Bc5 {[%clk 0:02:55.4]} 6. Bf4 {[%clk 0:02:58.6]} 6... d6 {[%clk
0:02:52.9]} 7. f3 {[%clk 0:02:57.5]} 7... Be6 {[%clk 0:02:51.3]} 8. O-O-O {[%clk
0:02:57.2]} 8... Qd7 {[%clk 0:02:44.5]} 9. Nge2 {[%clk 0:02:55.6]} 9... O-O-O
{[%clk 0:02:43.9]} 10. a3 {[%clk 0:02:52.9]} 10... h6 {[%clk 0:02:42.4]} 11. Na4
{[%clk 0:02:51.5]} 11... Bb6 {[%clk 0:02:42.3]} 12. Nxb6+ {[%clk 0:02:51.5]}
12... axb6 {[%clk 0:02:42.4]} 13. Nd4 {[%clk 0:02:52.2]} 13... Nxd4 {[%clk
0:02:37.8]} 14. Qxd4 {[%clk 0:02:53.1]} 14... Rhg8 {[%clk 0:02:31.3]} 15. a4
{[%clk 0:02:51.8]} 15... Qe8 {[%clk 0:02:07.2]} 16. b3 {[%clk 0:02:46.9]} 16...
Nd7 {[%clk 0:02:06.7]} 17. Bb5 {[%clk 0:02:43.4]} 17... Qe7 {[%clk 0:02:05.8]}
18. g4 {[%clk 0:02:24.4]} 18... Nc5 {[%clk 0:02:01.8]} 19. b4 {[%clk 0:02:21.3]}
19... Nd7 {[%clk 0:01:51.9]} 20. h4 {[%clk 0:02:19.4]} 20... f6 {[%clk
0:01:47.4]} 21. h5 {[%clk 0:02:18.2]} 21... Bf7 {[%clk 0:01:44.9]} 22. Kb2
{[%clk 0:02:17.3]} 22... Ne5 {[%clk 0:01:43.8]} 23. Be2 {[%clk 0:02:15.3]} 23...
Qe6 {[%clk 0:01:42.6]} 24. Ra1 {[%clk 0:02:13.9]} 24... c5 {[%clk 0:01:35.3]}
25. Qc3 {[%clk 0:02:10.7]} 25... Nc4+ {[%clk 0:01:32.5]} 26. Kc1 {[%clk
0:02:10.5]} 26... Ne5 {[%clk 0:01:24.6]} 27. a5 {[%clk 0:02:08.4]} 27... bxa5
{[%clk 0:01:09.6]} 28. bxc5 {[%clk 0:02:08]} 28... Nc6 {[%clk 0:01:04.8]} 29.
cxd6 {[%clk 0:02:05.5]} 29... Kd7 {[%clk 0:00:57.6]} 30. Bb5 {[%clk 0:02:04.4]}
30... Rc8 {[%clk 0:00:56.2]} 31. Rxa5 {[%clk 0:02:04.1]} 31... Rb8 {[%clk
0:00:52.5]} 32. Ra7 {[%clk 0:02:03.2]} 32... Rgc8 {[%clk 0:00:51.4]} 33. Rd1
{[%clk 0:02:00.3]} 33... Bg8 {[%clk 0:00:42.5]} 34. Rd5 {[%clk 0:01:59.3]} 34...
Qe8 {[%clk 0:00:39.8]} 35. Rc5 {[%clk 0:01:55.9]} 35... Kd8 {[%clk 0:00:26.4]}
36. Bxc6 {[%clk 0:01:55.3]} 36... Rxc6 {[%clk 0:00:24.6]} 37. d7 {[%clk
0:01:54.6]} 37... Qe6 {[%clk 0:00:21.2]} 38. Rxc6 {[%clk 0:01:54]} 38... Qxc6
{[%clk 0:00:20.5]} 39. Qxc6 {[%clk 0:01:52.9]} 39... bxc6 {[%clk 0:00:20.8]} 40.
Bxb8 {[%clk 0:01:53.3]} 1-0

[Event "Early-Titled-Tuesday-Blitz-May-28-2024"]
[Site "Chess.com"]
[Date "2024.05.28"]
[Round "1"]
[White "RantomOpening"]
[Black "HighLawView"]
[Result "1-0"]
[WhiteElo "2568"]
[BlackElo "2065"]
[TimeControl "180+1"]
[EndTime "8:05:33 PDT"]
[Termination "RantomOpening won by resignation"]

1. c4 {[%clk 0:02:55.9]} 1... c6 {[%clk 0:02:57.6]} 2. Nf3 {[%clk 0:02:55.6]}
2... d6 {[%clk 0:02:57.7]} 3. e4 {[%clk 0:02:51.1]} 3... Nf6 {[%clk 0:02:56.8]}
4. Nc3 {[%clk 0:02:50.7]} 4... g6 {[%clk 0:02:56.7]} 5. d4 {[%clk 0:02:50.4]}
5... Bg7 {[%clk 0:02:56.7]} 6. Be2 {[%clk 0:02:50]} 6... O-O {[%clk 0:02:56.6]}
7. O-O {[%clk 0:02:50.2]} 7... Nbd7 {[%clk 0:02:51.2]} 8. Be3 {[%clk 0:02:46.8]}
8... e5 {[%clk 0:02:46.1]} 9. dxe5 {[%clk 0:02:45]} 9... dxe5 {[%clk 0:02:46.2]}
10. h3 {[%clk 0:02:43]} 10... Qe8 {[%clk 0:02:38.1]} 11. Qc2 {[%clk 0:02:41.1]}
11... Nh5 {[%clk 0:02:35.8]} 12. Rfe1 {[%clk 0:02:36.3]} 12... f5 {[%clk
0:02:34.9]} 13. exf5 {[%clk 0:02:30.1]} 13... gxf5 {[%clk 0:02:33.3]} 14. Rad1
{[%clk 0:02:12.4]} 14... e4 {[%clk 0:02:01]} 15. Nd4 {[%clk 0:02:01.5]} 15... f4
{[%clk 0:01:58.4]} 16. Bc1 {[%clk 0:01:40.5]} 16... Nc5 {[%clk 0:01:18.4]} 17.
b4 {[%clk 0:01:30.5]} 17... f3 {[%clk 0:01:17.4]} 18. Bxf3 {[%clk 0:01:29.2]}
18... Rxf3 {[%clk 0:01:11.2]} 19. Nxf3 {[%clk 0:01:27.8]} 19... Bxh3 {[%clk
0:01:07.2]} 20. bxc5 {[%clk 0:01:21.8]} 20... Qg6 {[%clk 0:01:01.1]} 21. Nh4
{[%clk 0:01:16.3]} 21... Qg4 {[%clk 0:00:57.8]} 22. Rxe4 {[%clk 0:01:11.6]}
22... Qc8 {[%clk 0:00:47.9]} 23. Bg5 {[%clk 0:01:00.3]} 23... Bg4 {[%clk
0:00:43.1]} 24. Rd8+ {[%clk 0:00:58.4]} 1-0

[Event "Early-Titled-Tuesday-Blitz-May-28-2024"]
[Site "Chess.com"]
[Date "2024.05.28"]
[Round "1"]
[White "Tol_Tol"]
[Black "js20000"]
[Result "0-1"]
[WhiteElo "2378"]
[BlackElo "2682"]
[TimeControl "180+1"]
[EndTime "8:05:34 PDT"]
[Termination "js20000 won by resignation"]

1. d4 {[%clk 0:02:50.2]} 1... d6 {[%clk 0:02:59.1]} 2. c4 {[%clk 0:02:50.1]}
2... Nf6 {[%clk 0:02:58.4]} 3. Nc3 {[%clk 0:02:49.6]} 3... Bf5 {[%clk
0:02:57.7]} 4. f3 {[%clk 0:02:44.3]} 4... e5 {[%clk 0:02:56.4]} 5. e4 {[%clk
0:02:40.6]} 5... Bg6 {[%clk 0:02:56.2]} 6. dxe5 {[%clk 0:02:36.3]} 6... dxe5
{[%clk 0:02:55.9]} 7. Qxd8+ {[%clk 0:02:36.9]} 7... Kxd8 {[%clk 0:02:56.3]} 8.
Bg5 {[%clk 0:02:33.3]} 8... Nd7 {[%clk 0:02:51.1]} 9. O-O-O {[%clk 0:02:32.4]}
9... c6 {[%clk 0:02:40.5]} 10. Bxf6+ {[%clk 0:02:27]} 10... gxf6 {[%clk
0:02:41.4]} 11. g3 {[%clk 0:02:26.3]} 11... Kc7 {[%clk 0:02:36.1]} 12. h4 {[%clk
0:02:22.7]} 12... h5 {[%clk 0:02:35]} 13. Bh3 {[%clk 0:02:22.5]} 13... Nc5
{[%clk 0:02:32.4]} 14. Nge2 {[%clk 0:02:05.8]} 14... Bh6+ {[%clk 0:02:29.4]} 15.
Kc2 {[%clk 0:02:00.6]} 15... a5 {[%clk 0:02:20.1]} 16. b3 {[%clk 0:01:58.8]}
16... Be3 {[%clk 0:02:08.9]} 17. a3 {[%clk 0:01:49]} 17... Rhd8 {[%clk
0:02:07.8]} 18. Rxd8 {[%clk 0:01:44]} 18... Rxd8 {[%clk 0:02:08.7]} 19. Rd1
{[%clk 0:01:44.2]} 19... Rg8 {[%clk 0:02:01.1]} 20. b4 {[%clk 0:01:41.2]} 20...
axb4 {[%clk 0:01:59.9]} 21. axb4 {[%clk 0:01:42.1]} 21... Ne6 {[%clk 0:02:00.4]}
22. Rd3 {[%clk 0:01:31.4]} 22... Bf2 {[%clk 0:01:54.9]} 23. Nd1 {[%clk 0:01:29]}
23... Be1 {[%clk 0:01:54]} 24. Kb3 {[%clk 0:01:23.1]} 24... Bh7 {[%clk
0:01:46.7]} 25. c5 {[%clk 0:00:40.5]} 25... Bxg3 {[%clk 0:01:41.7]} 26. Rd6
{[%clk 0:00:40.3]} 26... Bxh4 {[%clk 0:01:31.5]} 27. Bxe6 {[%clk 0:00:38.8]}
27... fxe6 {[%clk 0:01:31.3]} 28. Rxe6 {[%clk 0:00:39.7]} 28... Rg7 {[%clk
0:01:23]} 29. Ne3 {[%clk 0:00:34.5]} 29... Bg8 {[%clk 0:01:22.9]} 0-1

[Event "Early-Titled-Tuesday-Blitz-May-28-2024"]
[Site "Chess.com"]
[Date "2024.05.28"]
[Round "1"]
[White "RobertJFischer71"]
[Black "pirulillo"]
[Result "0-1"]
[WhiteElo "2634"]
[BlackElo "2359"]
[TimeControl "180+1"]
[EndTime "8:05:34 PDT"]
[Termination "pirulillo won by resignation"]

1. e4 {[%clk 0:03:00.9]} 1... c5 {[%clk 0:02:59.7]} 2. Nf3 {[%clk 0:03:00.4]}
2... e6 {[%clk 0:03:00.2]} 3. d4 {[%clk 0:03:00.5]} 3... cxd4 {[%clk 0:03:01.1]}
4. Nxd4 {[%clk 0:03:00.7]} 4... Nf6 {[%clk 0:03:01.1]} 5. Nc3 {[%clk 0:03:00.5]}
5... Nc6 {[%clk 0:03:01.7]} 6. g3 {[%clk 0:03:00.4]} 6... d5 {[%clk 0:02:57.4]}
7. exd5 {[%clk 0:02:58.6]} 7... Nxd5 {[%clk 0:02:58.3]} 8. Nxc6 {[%clk 0:02:58]}
8... bxc6 {[%clk 0:02:56.9]} 9. Bg2 {[%clk 0:02:58.5]} 9... Bb4 {[%clk
0:02:45.5]} 10. Bd2 {[%clk 0:02:58.2]} 10... O-O {[%clk 0:02:42.4]} 11. O-O
{[%clk 0:02:57.6]} 11... Bxc3 {[%clk 0:02:37.4]} 12. bxc3 {[%clk 0:02:56.1]}
12... Ba6 {[%clk 0:02:35.9]} 13. Re1 {[%clk 0:02:56]} 13... Qc7 {[%clk
0:02:28.6]} 14. Qg4 {[%clk 0:02:53.4]} 14... Rae8 {[%clk 0:02:08.2]} 15. Rab1
{[%clk 0:02:38.8]} 15... f5 {[%clk 0:02:04.9]} 16. Qd4 {[%clk 0:02:34.5]} 16...
e5 {[%clk 0:01:45.9]} 17. Qc5 {[%clk 0:02:25.6]} 17... e4 {[%clk 0:01:40.3]} 18.
c4 {[%clk 0:02:10.7]} 18... Nb6 {[%clk 0:01:39.4]} 19. Bf4 {[%clk 0:02:08.9]}
19... Qc8 {[%clk 0:01:38.3]} 20. Bf1 {[%clk 0:02:04.1]} 20... Rf7 {[%clk
0:01:25.8]} 21. Red1 {[%clk 0:02:01.8]} 21... Rd7 {[%clk 0:01:14.5]} 22. Qxf5
{[%clk 0:02:01.1]} 22... Rxd1 {[%clk 0:01:14]} 23. Qxc8 {[%clk 0:02:01.6]} 23...
Rxf1+ {[%clk 0:01:13.9]} 24. Rxf1 {[%clk 0:01:56.4]} 24... Rxc8 {[%clk
0:01:12.2]} 25. Re1 {[%clk 0:01:54.9]} 25... Re8 {[%clk 0:01:12.2]} 26. c5
{[%clk 0:01:53.5]} 26... Nd5 {[%clk 0:01:11.3]} 27. Bd6 {[%clk 0:01:53]} 27...
Kf7 {[%clk 0:01:09.1]} 28. h3 {[%clk 0:01:47.1]} 28... Bc4 {[%clk 0:01:09]} 29.
a3 {[%clk 0:01:45]} 29... e3 {[%clk 0:01:08.7]} 30. fxe3 {[%clk 0:01:32.6]}
30... Rxe3 {[%clk 0:01:09.6]} 31. Rb1 {[%clk 0:01:31]} 31... Rxa3 {[%clk
0:01:05.7]} 32. Rb7+ {[%clk 0:01:29.5]} 32... Kg6 {[%clk 0:01:05.7]} 33. Kf2
{[%clk 0:01:29.8]} 33... Ra2 {[%clk 0:01:04.3]} 34. Be5 {[%clk 0:01:24.4]} 34...
Rxc2+ {[%clk 0:01:03.8]} 35. Kf3 {[%clk 0:01:25.3]} 35... Be2+ {[%clk
0:01:01.2]} 36. Ke4 {[%clk 0:01:16.5]} 36... Nf6+ {[%clk 0:01:01.3]} 37. Ke3
{[%clk 0:01:15.6]} 37... Bb5 {[%clk 0:00:58.9]} 38. Rxa7 {[%clk 0:01:11.8]}
38... Re2+ {[%clk 0:00:58.8]} 0-1

[Event "Early-Titled-Tuesday-Blitz-May-28-2024"]
[Site "Chess.com"]
[Date "2024.05.28"]
[Round "1"]
[White "Shushik"]
[Black "Dewarfd"]
[Result "1-0"]
[WhiteElo "2571"]
[BlackElo "2126"]
[TimeControl "180+1"]
[EndTime "8:05:43 PDT"]
[Termination "Shushik won on time"]

1. d4 {[%clk 0:03:00.9]} 1... d5 {[%clk 0:02:57.5]} 2. c4 {[%clk 0:03:01.3]}
2... c6 {[%clk 0:02:57.4]} 3. Nf3 {[%clk 0:03:01.3]} 3... Nf6 {[%clk 0:02:57.1]}
4. Qc2 {[%clk 0:03:00.5]} 4... g6 {[%clk 0:02:57]} 5. e3 {[%clk 0:02:59.4]} 5...
Bg7 {[%clk 0:02:57.1]} 6. Bd3 {[%clk 0:02:59.3]} 6... dxc4 {[%clk 0:02:46.6]} 7.
Bxc4 {[%clk 0:03:00.2]} 7... Bf5 {[%clk 0:02:43.7]} 8. Qb3 {[%clk 0:02:57.3]}
8... O-O {[%clk 0:02:32.2]} 9. Qxb7 {[%clk 0:02:49.4]} 9... Nbd7 {[%clk
0:01:53.6]} 10. O-O {[%clk 0:02:44.3]} 10... c5 {[%clk 0:01:47.2]} 11. Nc3
{[%clk 0:02:38]} 11... Qb6 {[%clk 0:01:30.9]} 12. Qxb6 {[%clk 0:02:35.3]} 12...
axb6 {[%clk 0:01:31.8]} 13. Nh4 {[%clk 0:02:26.6]} 13... cxd4 {[%clk 0:00:57.6]}
14. Nxf5 {[%clk 0:02:25.2]} 14... gxf5 {[%clk 0:00:49.1]} 15. exd4 {[%clk
0:02:24.8]} 15... Ne4 {[%clk 0:00:42.6]} 16. Be3 {[%clk 0:02:04.5]} 16... Ndf6
{[%clk 0:00:30.2]} 17. Nb5 {[%clk 0:01:55.6]} 17... Ng4 {[%clk 0:00:17.6]} 18.
Bf4 {[%clk 0:01:28.4]} 18... Rac8 {[%clk 0:00:11.1]} 19. Rac1 {[%clk 0:01:25.8]}
19... Ngf6 {[%clk 0:00:07.7]} 20. f3 {[%clk 0:01:20.6]} 20... Nd6 {[%clk
0:00:01.9]} 21. Nxd6 {[%clk 0:01:20.7]} 21... exd6 {[%clk 0:00:01.9]} 22. Bxd6
{[%clk 0:01:21.6]} 22... Rfd8 {[%clk 0:00:01.9]} 23. Be5 {[%clk 0:01:21.4]}
23... Kf8 {[%clk 0:00:01]} 24. Rfe1 {[%clk 0:01:17]} 1-0

[Event "Early-Titled-Tuesday-Blitz-May-28-2024"]
[Site "Chess.com"]
[Date "2024.05.28"]
[Round "1"]
[White "JAN2404"]
[Black "GMAneta"]
[Result "0-1"]
[WhiteElo "1954"]
[BlackElo "2557"]
[TimeControl "180+1"]
[EndTime "8:05:43 PDT"]
[Termination "GMAneta won by resignation"]

1. e4 {[%clk 0:02:59.3]} 1... c5 {[%clk 0:02:59.5]} 2. d4 {[%clk 0:02:57]} 2...
cxd4 {[%clk 0:02:58.8]} 3. c3 {[%clk 0:02:56.8]} 3... dxc3 {[%clk 0:02:58.3]} 4.
Nxc3 {[%clk 0:02:57.2]} 4... Nc6 {[%clk 0:02:58.4]} 5. Nf3 {[%clk 0:02:56.3]}
5... e6 {[%clk 0:02:56.3]} 6. Bc4 {[%clk 0:02:55.3]} 6... a6 {[%clk 0:02:55.8]}
7. O-O {[%clk 0:02:55]} 7... d6 {[%clk 0:02:55.5]} 8. Qe2 {[%clk 0:02:41]} 8...
Nge7 {[%clk 0:02:55.2]} 9. Bg5 {[%clk 0:02:38.6]} 9... b5 {[%clk 0:02:48.8]} 10.
Bb3 {[%clk 0:02:37.1]} 10... Bb7 {[%clk 0:02:48.9]} 11. Rfd1 {[%clk 0:02:33.3]}
11... Qc7 {[%clk 0:02:48.4]} 12. Rac1 {[%clk 0:02:25.8]} 12... Rd8 {[%clk
0:02:47.7]} 13. Nd5 {[%clk 0:02:22.5]} 13... Qb8 {[%clk 0:02:47.7]} 14. Nxe7
{[%clk 0:01:46.4]} 14... Bxe7 {[%clk 0:02:46]} 15. Bf4 {[%clk 0:01:34.3]} 15...
O-O {[%clk 0:02:44.1]} 16. Rd2 {[%clk 0:01:32.1]} 16... Ne5 {[%clk 0:02:42.8]}
17. Bxe5 {[%clk 0:01:28.4]} 17... dxe5 {[%clk 0:02:42.1]} 18. Rcd1 {[%clk
0:01:28.2]} 18... Rxd2 {[%clk 0:02:41.8]} 19. Rxd2 {[%clk 0:01:27.5]} 19... Rd8
{[%clk 0:02:41.9]} 20. h3 {[%clk 0:01:22.6]} 20... Rxd2 {[%clk 0:02:38.1]} 21.
Qxd2 {[%clk 0:01:22.2]} 21... Bxe4 {[%clk 0:02:33.5]} 22. Qd7 {[%clk 0:01:18.6]}
22... Bf6 {[%clk 0:02:24.3]} 23. Bd1 {[%clk 0:01:07.8]} 23... Bd5 {[%clk
0:02:22.6]} 24. a3 {[%clk 0:01:04.3]} 24... e4 {[%clk 0:02:21.2]} 25. Nd2 {[%clk
0:00:40.6]} 25... Bxb2 {[%clk 0:02:12.6]} 26. a4 {[%clk 0:00:41]} 26... Bc3
{[%clk 0:01:58.3]} 27. Nb1 {[%clk 0:00:34.2]} 27... Bd4 {[%clk 0:01:52.8]} 28.
Na3 {[%clk 0:00:24.7]} 28... b4 {[%clk 0:01:48.1]} 29. Nc4 {[%clk 0:00:24.4]}
29... Bxf2+ {[%clk 0:01:46.6]} 30. Kxf2 {[%clk 0:00:22.7]} 30... Bxc4 {[%clk
0:01:45]} 31. Qc6 {[%clk 0:00:17.4]} 31... Bd3 {[%clk 0:01:37.8]} 32. Bb3 {[%clk
0:00:15.9]} 32... h6 {[%clk 0:01:34.6]} 33. g4 {[%clk 0:00:15]} 33... Qf4+
{[%clk 0:01:32.9]} 0-1

[Event "Early-Titled-Tuesday-Blitz-May-28-2024"]
[Site "Chess.com"]
[Date "2024.05.28"]
[Round "1"]
[White "Davidalhesa2007"]
[Black "chrisclaireredfield"]
[Result "0-1"]
[WhiteElo "1890"]
[BlackElo "2556"]
[TimeControl "180+1"]
[EndTime "8:05:44 PDT"]
[Termination "chrisclaireredfield won by resignation"]

1. d4 {[%clk 0:02:49.4]} 1... d5 {[%clk 0:02:59.6]} 2. Nc3 {[%clk 0:02:41.8]}
2... Nf6 {[%clk 0:02:58.6]} 3. Bf4 {[%clk 0:02:40.9]} 3... a6 {[%clk 0:02:58.6]}
4. e3 {[%clk 0:02:34.4]} 4... b5 {[%clk 0:02:58.4]} 5. a3 {[%clk 0:02:34.4]}
5... e6 {[%clk 0:02:55.2]} 6. b4 {[%clk 0:02:34.5]} 6... Bd6 {[%clk 0:02:46.4]}
7. Nf3 {[%clk 0:02:32.3]} 7... O-O {[%clk 0:02:42.9]} 8. Ne5 {[%clk 0:02:32.1]}
8... Nfd7 {[%clk 0:02:38.5]} 9. Bd3 {[%clk 0:02:16.6]} 9... Nxe5 {[%clk
0:02:34]} 10. dxe5 {[%clk 0:02:15]} 10... Be7 {[%clk 0:02:33.8]} 11. O-O {[%clk
0:02:13.6]} 11... c5 {[%clk 0:02:32.1]} 12. Qh5 {[%clk 0:01:23.3]} 12... g6
{[%clk 0:02:22.4]} 13. Qh3 {[%clk 0:01:20.1]} 13... cxb4 {[%clk 0:02:19.1]} 14.
axb4 {[%clk 0:01:19.6]} 14... Bxb4 {[%clk 0:02:19.3]} 15. Bh6 {[%clk 0:01:19.6]}
15... Re8 {[%clk 0:02:19.3]} 16. Nxb5 {[%clk 0:01:14.9]} 16... Nc6 {[%clk
0:02:07.7]} 17. c3 {[%clk 0:00:50]} 17... Bc5 {[%clk 0:02:02.8]} 18. Nd4 {[%clk
0:00:38.4]} 18... Nxe5 {[%clk 0:02:00.5]} 19. Be2 {[%clk 0:00:31.7]} 19... Bb7
{[%clk 0:01:53.1]} 20. Bf4 {[%clk 0:00:27]} 20... Nc4 {[%clk 0:01:50.5]} 21.
Bxc4 {[%clk 0:00:25.1]} 21... dxc4 {[%clk 0:01:50.7]} 22. Rfd1 {[%clk
0:00:23.5]} 22... Qe7 {[%clk 0:01:48.9]} 23. Nf3 {[%clk 0:00:18.4]} 23... f6
{[%clk 0:01:45.5]} 24. Nd4 {[%clk 0:00:13.6]} 24... e5 {[%clk 0:01:43.9]} 25.
Bxe5 {[%clk 0:00:06.1]} 25... fxe5 {[%clk 0:01:42.9]} 26. Nf3 {[%clk 0:00:02.8]}
26... Rad8 {[%clk 0:01:35]} 27. Rxd8 {[%clk 0:00:03.2]} 27... Rxd8 {[%clk
0:01:34.9]} 28. g3 {[%clk 0:00:03.6]} 28... Bxf3 {[%clk 0:01:34.2]} 0-1

[Event "Early-Titled-Tuesday-Blitz-May-28-2024"]
[Site "Chess.com"]
[Date "2024.05.28"]
[Round "1"]
[White "SharapovEvgeny"]
[Black "Viktor_Poddubnyi"]
[Result "1-0"]
[WhiteElo "2612"]
[BlackElo "2287"]
[TimeControl "180+1"]
[EndTime "8:05:46 PDT"]
[Termination "SharapovEvgeny won on time"]

1. e4 {[%clk 0:02:59.8]} 1... g6 {[%clk 0:03:00]} 2. d4 {[%clk 0:02:59.4]} 2...
Bg7 {[%clk 0:03:00.4]} 3. Nc3 {[%clk 0:03:00]} 3... d6 {[%clk 0:03:00.7]} 4. f4
{[%clk 0:02:58.4]} 4... Nf6 {[%clk 0:03:00.3]} 5. Nf3 {[%clk 0:02:58.1]} 5...
O-O {[%clk 0:03:00.6]} 6. Bd3 {[%clk 0:02:57.4]} 6... Nc6 {[%clk 0:03:00.2]} 7.
e5 {[%clk 0:02:56.9]} 7... Nh5 {[%clk 0:02:45.8]} 8. O-O {[%clk 0:02:50.3]} 8...
Bg4 {[%clk 0:02:27.1]} 9. Be3 {[%clk 0:02:49.2]} 9... Bh6 {[%clk 0:02:17.6]} 10.
Qd2 {[%clk 0:02:45.2]} 10... dxe5 {[%clk 0:01:57.8]} 11. Nxe5 {[%clk 0:02:44.7]}
11... Be6 {[%clk 0:01:29.4]} 12. Nxc6 {[%clk 0:02:39.5]} 12... bxc6 {[%clk
0:01:30.3]} 13. Ne4 {[%clk 0:02:32.1]} 13... Rb8 {[%clk 0:00:59.7]} 14. b3
{[%clk 0:02:28.2]} 14... Bg7 {[%clk 0:00:56.4]} 15. c3 {[%clk 0:02:26.3]} 15...
Bd5 {[%clk 0:00:50.2]} 16. Nc5 {[%clk 0:02:23.8]} 16... Qd6 {[%clk 0:00:44.4]}
17. Rad1 {[%clk 0:02:16.9]} 17... Nf6 {[%clk 0:00:40.4]} 18. c4 {[%clk
0:02:15.3]} 18... Be6 {[%clk 0:00:37.2]} 19. Nxe6 {[%clk 0:02:14.8]} 19... Qxe6
{[%clk 0:00:35.2]} 20. f5 {[%clk 0:02:15.1]} 20... Qd7 {[%clk 0:00:32.2]} 21.
Bb1 {[%clk 0:02:07.5]} 21... Rbd8 {[%clk 0:00:30.5]} 22. h3 {[%clk 0:02:05.3]}
22... Qd6 {[%clk 0:00:18.6]} 23. Bf4 {[%clk 0:02:02.3]} 23... Qd7 {[%clk
0:00:17]} 24. Bh6 {[%clk 0:01:54.5]} 24... Qd6 {[%clk 0:00:03.4]} 25. Bxg7
{[%clk 0:01:53.3]} 25... Kxg7 {[%clk 0:00:04.3]} 26. Qe3 {[%clk 0:01:50.2]}
26... Rd7 {[%clk 0:00:03.6]} 27. g4 {[%clk 0:01:41.3]} 27... Rfd8 {[%clk
0:00:03]} 28. Rfe1 {[%clk 0:01:34.3]} 28... c5 {[%clk 0:00:01.7]} 29. d5 {[%clk
0:01:32.1]} 1-0